lending/lending_fUSD_20250516
["ID","MTS","AMOUNT","RATE_DAILY","PERIOD"]
[361226570,1747363833144,-673.03161803,0.00011162,2]
[361226571,1747363833154,-673.03161803,0.00011162,2]
[361226572,1747363833163,-673.03161803,0.00011162,2]
[361226573,1747363833172,-673.03161803,0.00011162,2]
[361226574,1747363833181,-673.03161803,0.00011162,2]
[361226575,1747363833190,-673.03161803,0.00011162,2]
[361226576,1747363833199,-673.03161803,0.00011162,2]
[361226577,1747363833208,-673.03161803,0.00011162,2]
[361226578,1747363833217,-673.03161803,0.00011162,2]
[361226579,1747363833226,-673.03161803,0.00011162,2]
[361226580,1747363833235,-673.03161803,0.00011162,2]
[361226581,1747363833244,-673.03161803,0.00011162,2]
[361226582,1747363833253,-673.03161803,0.00011162,2]
[361226583,1747363833263,-673.03161803,0.00011162,2]
[361226584,1747363833272,-673.03161803,0.00011162,2]
[361226585,1747363833281,-673.03161803,0.00011162,2]
[361226586,1747363833290,-85239.71267743,0.00011163,2]
[361226592,1747363838299,-264.4450012,0.00011163,2]
[361226593,1747363838310,-256.94,0.00011163,2]
[361226594,1747363838372,-448.13726371,0.00011163,2]
[361226595,1747363838383,-1520.0,0.00011163,2]
[361226597,1747363838469,-3616.30217024,0.00011163,2]
[361226618,1747363840229,-524.34196823,0.00011163,2]
[361226620,1747363840240,-1792.4000004,0.00011163,2]
[361226626,1747363840285,-3470.52091879,0.00011163,2]
[361226628,1747363840295,-250.0,0.00011174,2]
[361226630,1747363840304,-163.79,0.00011227,2]
[361226632,1747363840314,-1963.93492288,0.00011236,2]
[361226634,1747363840326,-21936.06507712,0.00011236,2]
[361226636,1747363840337,-1000.0,0.00011238,2]
[361226638,1747363840347,-185.13,0.00011266,2]
[361226640,1747363840357,-1319.2,0.00011556,2]
[361226642,1747363840366,-174.74,0.00011744,2]
[361226644,1747363840375,-174.74,0.00011747,2]
[361226646,1747363840385,-174.74,0.0001175,2]
[361226648,1747363840395,-174.74,0.00011754,2]
[361226650,1747363840404,-174.74,0.00011757,2]
[361226652,1747363840413,-174.74,0.0001176,2]
[361226654,1747363840423,-174.74,0.00011763,2]
[361226656,1747363840433,-174.74,0.00011766,2]
[361226658,1747363840442,-174.74,0.00011769,2]
[361226660,1747363840451,-174.74,0.00011772,2]
[361226662,1747363840461,-174.74,0.00011775,2]
[361226664,1747363840470,-174.74,0.00011778,2]
[361226666,1747363840479,-174.74,0.00011781,2]
[361226668,1747363840489,-174.74,0.00011784,2]
[361226670,1747363840498,-563.73002683,0.00011787,2]
[361226672,1747363840507,-174.74,0.00011788,2]
[361226674,1747363840518,-178.2,0.00011789,2]
[361226675,1747363840527,-174.74,0.00011791,2]
[361226676,1747363840537,-174.74,0.00011794,2]
[361226678,1747363840546,-174.74,0.00011797,2]
[361226680,1747363840555,-174.74,0.000118,2]
[361226682,1747363840565,-174.74,0.00011803,2]
[361226684,1747363840574,-1128.98,0.00011898,2]
[361226686,1747363840584,-4030.1876,0.000119,2]
[361226688,1747363840593,-200.0,0.00011948,2]
[361226690,1747363840602,-200.0,0.00011948,2]
[361226692,1747363840613,-250.0,0.00012038,2]
[361226694,1747363840622,-250.0,0.00012038,2]
[361226696,1747363840631,-200.0,0.00012052,2]
[361226697,1747363840641,-197.76,0.00012164,2]
[361226698,1747363840650,-300.0,0.000122,4]
[361226699,1747363840659,-1680.0,0.00012277,2]
[361226700,1747363840668,-600.0,0.000123,4]
[361226701,1747363840677,-166.21,0.00012308,2]
[361226702,1747363840687,-500.0,0.00012349,2]
[361226703,1747363840697,-151.0,0.00012349,2]
[361226704,1747363840706,-156.80306497,0.00012349,2]
[361226705,1747363840716,-155.0,0.00012349,2]
[361226706,1747363840725,-719.52358209,0.00012349,2]
[361226707,1747363840735,-207.4,0.00012349,2]
[361226708,1747363840744,-668.65185757,0.00012349,2]
[361226709,1747363840754,-151.0,0.00012349,2]
[361226710,1747363840763,-200.0,0.00012349,2]
[361226711,1747363840772,-556.30965236,0.00012376,2]
[361226712,1747363840781,-167.95,0.0001239,2]
[361226713,1747363840791,-956.195,0.000124,2]
[361226714,1747363840800,-1316.193,0.000124,2]
[361226715,1747363840810,-157.206,0.000124,2]
[361226716,1747363840819,-203.102,0.000124,2]
[361226717,1747363840829,-880.0,0.000124,2]
[361226718,1747363840838,-6825.0,0.000124,2]
[361226719,1747363840847,-4037.0,0.000124,2]
[361226720,1747363840857,-156.55,0.000124,2]
[361226721,1747363840866,-1000.0,0.000124,4]
[361226723,1747363840875,-179.51,0.00012413,2]
[361226725,1747363840885,-1300.0,0.000125,4]
[361226727,1747363840894,-152.33,0.00012582,2]
[361226729,1747363840903,-311.46,0.00012582,2]
[361226731,1747363840913,-1700.0,0.000126,4]
[361226733,1747363840923,-1000.0,0.00012643,2]
[361226735,1747363840936,-807.72338721,0.00012652,2]
[361226736,1747363840947,-300.0,0.000127,4]
[361226737,1747363840957,-179.5419,0.00012768,2]
[361226738,1747363840967,-300.0,0.000128,4]
[361226739,1747363840978,-169.89751976,0.000128,2]
[361226740,1747363840988,-167.95,0.0001286,2]
[361226741,1747363840998,-167.95,0.0001286,2]
[361226742,1747363841008,-75667.94176043,0.0001287,2]
[361226743,1747363841020,-500.0,0.00012896,2]
[361226744,1747363841030,-200.0,0.00012896,2]
[361226745,1747363841039,-693.3919763,0.00012897,2]
[361226746,1747363841051,-151.0,0.00012897,2]
[361226747,1747363841061,-207.4,0.00012897,2]
[361226748,1747363841071,-364.4347,0.000129,2]
[361226749,1747363841081,-188.40775267,0.000129,2]
[361226750,1747363841091,-3043.407,0.000129,2]
[361226751,1747363841101,-169.031,0.000129,2]
[361226752,1747363841110,-546.2840925,0.000129,2]
[361226753,1747363841394,-152.15584996,0.000129,2]
[361226754,1747363841404,-155.81671018,0.000129,2]
[361226755,1747363841413,-300.0,0.000129,4]
[361226756,1747363841422,-3315.40360792,0.000129,2]
[361226757,1747363841432,-1322.0,0.000129,2]
[361226758,1747363841441,-256.41236646,0.000129,2]
[361226759,1747363841450,-161.82074599,0.000129,2]
[361226760,1747363841459,-151.0,0.00012922,2]
[361226761,1747363841469,-151.0,0.00012922,2]
[361226762,1747363841478,-151.0,0.00012922,2]
[361226763,1747363841488,-151.0,0.00012924,2]
[361226764,1747363841498,-151.0,0.00012925,2]
[361226765,1747363841507,-1726.9102719,0.00012934,2]
[361226766,1747363841516,-524.85252121,0.00012973,2]
[361226767,1747363841526,-508.05217038,0.00012973,2]
[361226768,1747363841536,-501.31029843,0.00012973,2]
[361226769,1747363841546,-500.57611015,0.00012973,2]
[361226770,1747363841556,-501.02205933,0.00012973,2]
[361226771,1747363841565,-167.95,0.0001299,2]
[361226772,1747363841575,-167.95,0.0001299,2]
[361226773,1747363841584,-167.95,0.0001299,2]
[361226774,1747363841593,-555.16686085,0.0001299,2]
[361226775,1747363841603,-555.16686085,0.0001299,2]
[361226776,1747363841613,-555.16686085,0.0001299,2]
[361226777,1747363841622,-529.09904301,0.00012998,2]
[361226778,1747363841631,-308.39849468,0.00012999,2]
[361226779,1747363841640,-398776.54508534,0.00013,2]
[361226780,1747363841650,-232297.05052746,0.00013,2]
[361226781,1747363841662,-952.96984579,0.00013,2]
[361226782,1747363841676,-10342.85860827,0.00013,2]
[361226783,1747363841687,-10862.998694,0.00013,2]
[361226784,1747363841698,-39511.67844156,0.00013,2]
[361226785,1747363841738,-21042.0,0.00013,2]
[361226786,1747363841750,-54011.07634496,0.00013,2]
[361226787,1747363841761,-12655.7,0.00013,2]
[361226788,1747363841884,-0.00192542,0.00013,2]
[361226789,1747363841908,-22674.38141239,0.00013,2]
[361226795,1747363843214,-3301.09141369,0.00013,2]
[361226801,1747363843317,-1299.8131374,0.00013,2]
[361226802,1747363843338,-295.62048643,0.00013,2]
[361226803,1747363843371,-435.84438426,0.00013,2]
[361226804,1747363843382,-1858.779066,0.00013,2]
[361226805,1747363843393,-1000.0,0.00013,2]
[361226806,1747363843409,-747.38864308,0.00013,2]
[361226807,1747363843426,-106283.74770646,0.00013,2]
[361226808,1747363843438,-1142.67020206,0.00013,2]
[361226809,1747363843533,-1053.08147622,0.00013,2]
[361226810,1747363843545,-2650.86294906,0.00013,2]
[361226811,1747363843587,-5656.49669817,0.00013,2]
[361226820,1747363846102,-15580.0,0.00013,2]
[361226821,1747363846208,-1640.98266987,0.00013,2]
[361226822,1747363846220,-387.0809115,0.00013,2]
[361226823,1747363846231,-1836.04690002,0.00013,2]
[361226824,1747363846242,-4072.72400086,0.00013,2]
[361226825,1747363846261,-1572.0,0.00013,2]
[361226826,1747363846272,-302.03000004,0.00013,2]
[361226827,1747363846319,-386625.47781089,0.00013,2]
[361226828,1747363846375,-5313.50542147,0.00013,2]
[361226829,1747363846481,-1144.90926115,0.00013,2]
[361226830,1747363846537,-24862.79892833,0.00013,2]
[361226831,1747363846551,-2989.65723312,0.00013,2]
[361227782,1747363998300,5000.0,0.00025,30]
[361227783,1747364022651,5746.89,0.00025,30]
[361227784,1747364134607,-200.0,0.00011475,2]
[361227785,1747364134632,-117.09500899,0.00011631,2]
[361227786,1747364218360,-245.49792915,0.0001002,2]
[361227787,1747364221535,-179.04751958,0.0001002,2]
[361227788,1747364225489,-266.421135,0.0001002,2]
[361227789,1747364228044,-295.20140833,0.0001002,2]
[361227790,1747364231525,-231.55859167,0.0001002,2]
[361227791,1747364233248,-65.79341627,0.0001002,2]
[361227792,1747364292061,150.0,0.00011951,7]
[361227793,1747364316656,49999.99999901,0.0002739,120]
[361227794,1747364320819,162.30288373,0.0002739,120]
[361227795,1747364359551,-214.13273447,0.0001,2]
[361227796,1747364360592,-235.86726553,0.0001,2]
[361227799,1747364594367,216.31614169,0.000273,120]
[361227801,1747364830135,-250.0,0.00011709,2]
[361227802,1747364830156,-200.0,0.00011709,2]
[361227803,1747364830176,-116.67299005,0.00011717,2]
[361227818,1747365032365,-824.47,0.00011698,2]
[361227820,1747365032374,-200.0,0.00011707,2]
[361227822,1747365032383,-133.32700995,0.00011717,2]
[361227824,1747365032393,-1200.0,0.00011738,2]
[361227826,1747365032402,-40620.71,0.00011739,2]
[361227828,1747365032412,-163.21,0.00011753,2]
[361227829,1747365032422,-2801.86279676,0.00011787,2]
[361227830,1747365032446,-1054.93798175,0.00011787,2]
[361227831,1747365032459,-508.28505914,0.00011787,2]
[361227832,1747365032471,-4553.78437771,0.00011787,2]
[361227833,1747365032527,-549.0,0.00011787,2]
[361227848,1747365038383,-2568.16918599,0.00011787,2]
[361227849,1747365038394,-563.73002683,0.00011787,2]
[361227850,1747365038405,-1790.42979018,0.00011839,2]
[361227851,1747365038433,-565.6515608,0.00011839,2]
[361227852,1747365038552,-2615.92995068,0.00011839,2]
[361227901,1747365040678,-2000.0,0.00011839,2]
[361227902,1747365040705,-16927.98869834,0.00011839,2]
[361227903,1747365040716,-196.0,0.000119,2]
[361227904,1747365040725,-196.0,0.000119,2]
[361227905,1747365040735,-461.67,0.00011946,2]
[361227906,1747365040745,-1000.0,0.00011971,2]
[361227907,1747365040754,-500.0,0.00012,2]
[361227908,1747365040764,-166.21,0.00012069,2]
[361227909,1747365040775,-1283.52,0.00012284,2]
[361227910,1747365040785,-913.77,0.000123,2]
[361227911,1747365040797,-300.0,0.000123,4]
[361227912,1747365040807,-233.63,0.00012319,2]
[361227913,1747365040817,-207.4,0.00012349,2]
[361227914,1747365040827,-203.102,0.000124,2]
[361227915,1747365040837,-919.0,0.000124,2]
[361227916,1747365040847,-200.0,0.000124,2]
[361227917,1747365040856,-199.51,0.000124,3]
[361227918,1747365040865,-700.0,0.000124,4]
[361227919,1747365040874,-312.15,0.000124,2]
[361227920,1747365040884,-880.0,0.00012472,2]
[361227921,1747365040893,-4037.0,0.00012472,2]
[361227922,1747365040902,-156.55,0.00012472,2]
[361227923,1747365040910,-6825.0,0.00012472,2]
[361227924,1747365040919,-1100.0,0.000125,4]
[361227925,1747365040929,-167.33,0.00012588,2]
[361227926,1747365040938,-1500.0,0.000126,4]
[361227927,1747365040948,-154.04352596,0.00012669,2]
[361227928,1747365040957,-1900.0,0.000127,4]
[361227929,1747365040966,-151.0,0.00012762,2]
[361227930,1747365040975,-200.0,0.00012762,2]
[361227931,1747365040985,-155.0,0.00012762,2]
[361227932,1747365040994,-719.52358209,0.00012762,2]
[361227933,1747365041003,-668.65185757,0.00012762,2]
[361227934,1747365041013,-156.80306497,0.00012762,2]
[361227935,1747365041023,-151.0,0.00012762,2]
[361227936,1747365041033,-168.15519269,0.00012769,2]
[361227937,1747365041043,-500.0,0.00012769,2]
[361227938,1747365041052,-500.0,0.00012769,2]
[361227939,1747365041060,-561.38078881,0.00012769,2]
[361227940,1747365041070,-500.0,0.00012769,2]
[361227941,1747365041080,-500.0,0.00012769,2]
[361227942,1747365041088,-500.0,0.00012769,2]
[361227943,1747365041097,-500.0,0.00012769,2]
[361227944,1747365041107,-500.0,0.00012769,2]
[361227945,1747365041116,-500.0,0.00012769,2]
[361227946,1747365041124,-500.0,0.00012769,2]
[361227947,1747365041133,-500.0,0.00012769,2]
[361227948,1747365041142,-500.0,0.00012769,2]
[361227949,1747365041152,-500.0,0.00012769,2]
[361227950,1747365041161,-41077.5183,0.0001277,2]
[361227951,1747365041170,-807.72338721,0.00012792,2]
[361227952,1747365041180,-250.0,0.00012794,2]
[361227953,1747365041189,-196.0,0.000128,3]
[361227954,1747365041199,-300.0,0.000128,4]
[361227955,1747365041208,-200.0,0.00012867,2]
[361227956,1747365041218,-200.0,0.00012888,2]
[361227957,1747365041227,-500.0,0.00012896,2]
[361227958,1747365041236,-200.0,0.00012896,2]
[361227959,1747365041246,-3043.407,0.00012899,2]
[361227960,1747365041255,-169.031,0.00012899,2]
[361227961,1747365041264,-1000.0,0.000129,2]
[361227962,1747365041274,-179.5419,0.000129,2]
[361227963,1747365041284,-364.4347,0.000129,2]
[361227964,1747365041294,-212.67184376,0.000129,2]
[361227965,1747365041303,-722.03239752,0.000129,2]
[361227966,1747365041313,-300.0,0.000129,4]
[361227967,1747365041322,-3315.40360792,0.000129,2]
[361227968,1747365041332,-256.41236646,0.000129,2]
[361227969,1747365041341,-457.79858017,0.000129,2]
[361227970,1747365041350,-161.82074599,0.000129,2]
[361227971,1747365041360,-180.43706513,0.000129,2]
[361227972,1747365041369,-191.5296057,0.000129,2]
[361227973,1747365041379,-1322.0,0.000129,2]
[361227974,1747365041388,-1680.0,0.00012911,2]
[361227975,1747365041397,-1771.3132688,0.00012934,2]
[361227976,1747365041406,-524.85252121,0.00012973,2]
[361227977,1747365041416,-501.31029843,0.00012973,2]
[361227978,1747365041426,-508.05217038,0.00012973,2]
[361227979,1747365041435,-500.57611015,0.00012973,2]
[361227980,1747365041444,-501.02205933,0.00012973,2]
[361227981,1747365041454,-350.0,0.00012987,2]
[361227982,1747365041463,-167.95,0.0001299,2]
[361227983,1747365041472,-167.95,0.0001299,2]
[361227984,1747365041482,-167.95,0.0001299,2]
[361227985,1747365041491,-167.95,0.0001299,2]
[361227986,1747365041501,-167.95,0.0001299,2]
[361227987,1747365041510,-167.95,0.0001299,2]
[361227988,1747365041519,-196.0,0.0001299,3]
[361227989,1747365041529,-555.16686085,0.0001299,2]
[361227990,1747365041539,-555.16686085,0.0001299,2]
[361227991,1747365041548,-555.16686085,0.0001299,2]
[361227992,1747365041558,-529.09904301,0.00012998,2]
[361227993,1747365041568,-998.29296462,0.00012998,2]
[361227994,1747365041578,-23777.9,0.00012999,2]
[361227995,1747365041587,-500.0,0.00012999,2]
[361227996,1747365041601,-308.39849468,0.00012999,2]
[361227997,1747365041610,-440475.24611335,0.00013,2]
[361227999,1747365041620,-226954.54641834,0.00013,2]
[361228002,1747365041633,-1576.79666071,0.00013,2]
[361228005,1747365041653,-1037.99999985,0.00013,2]
[361228013,1747365041727,-18620.83418207,0.00013,2]
[361228016,1747365041742,-2619.10371769,0.00013,2]
[361228039,1747365041956,-146.47932007,0.00013,2]
[361228183,1747365043455,-470.0000045,0.00013,2]
[361228185,1747365043467,-1300.0,0.00013,2]
[361228195,1747365043715,-649.32987711,0.00013,2]
[361228478,1747365046580,-2649.37938423,0.00013,2]
[361228479,1747365046593,-40785.811048,0.00013,2]
[361228480,1747365046638,-4789.44171752,0.00013,2]
[361228481,1747365046649,-6990.18089308,0.00013,2]
[361228485,1747365046691,-431.22961645,0.00013,2]
[361228825,1747365233950,-209.31860626,0.00012498,2]
[361228826,1747365367324,150.0,0.00012245,7]
[361228827,1747365440786,167.51,9.753e-05,2]
[361228831,1747365584742,-423.09298582,0.00010097,2]
[361228832,1747365590162,-285.50247882,0.00010097,2]
[361228833,1747365591686,-230.41762075,0.00010097,2]
[361228834,1747365593817,-203.68250065,0.00010097,2]
[361228835,1747365597518,-59.56441396,0.00010097,2]
[361228836,1747365718235,327.89703945,0.00027,120]
[361228839,1747365966970,2842.41177124,8e-05,2]
[361228841,1747366044512,-516.19,0.00011323,2]
[361228842,1747366044537,-200.0,0.00011327,2]
[361228843,1747366044557,-290.83024007,0.0001133,2]
[361228844,1747366044579,-460.66352861,0.00011331,2]
[361228846,1747366071640,-233.80033925,0.0001,2]
[361228847,1747366073199,-161.7,0.0001,2]
[361228848,1747366076532,-248.4721287,0.0001,2]
[361228849,1747366078632,-217.60408785,0.0001,2]
[361228850,1747366080141,-155.86,0.0001,2]
[361228857,1747366082226,-265.15046763,0.0001,2]
[361228858,1747366084355,-322.47637996,0.0001,2]
[361228859,1747366087419,-185.63906456,0.0001,2]
[361228860,1747366088845,-241.81487844,0.0001,2]
[361228861,1747366090989,-245.41510235,0.0001,2]
[361228862,1747366094411,-245.41510235,0.0001,2]
[361228863,1747366096856,-245.41510235,0.0001,2]
[361228864,1747366098970,-69.63664323,0.0001,2]
[361228879,1747366166111,-199.21833684,0.000109,2]
[361228880,1747366166132,-300.0,0.00010998,2]
[361228881,1747366166152,-168.15519269,0.00010999,2]
[361228882,1747366166176,-500.0,0.00010999,2]
[361228883,1747366166203,-500.0,0.00010999,2]
[361228884,1747366166227,-500.0,0.00010999,2]
[361228885,1747366166250,-500.0,0.00010999,2]
[361228886,1747366166272,-500.0,0.00010999,2]
[361228887,1747366166296,-500.0,0.00010999,2]
[361228888,1747366166318,-500.0,0.00010999,2]
[361228889,1747366166339,-500.0,0.00010999,2]
[361228890,1747366166361,-500.0,0.00010999,2]
[361228891,1747366166383,-598.6035418,0.00010999,2]
[361228892,1747366166404,-500.0,0.00010999,2]
[361228893,1747366166427,-500.0,0.00010999,2]
[361228894,1747366166449,-500.0,0.00010999,2]
[361228895,1747366166471,-500.0,0.00010999,2]
[361228896,1747366166493,-500.0,0.00010999,2]
[361228897,1747366166513,-38457.15364867,0.00011,2]
[361228900,1747366180930,-175.77845912,0.0001,2]
[361228901,1747366182783,-274.22154088,0.0001,2]
[361228905,1747366219173,3000.0,0.00025,30]
[361228909,1747366231463,-167.03,0.0001099,2]
[361228910,1747366231472,-167.03,0.0001099,2]
[361228912,1747366231481,-167.03,0.0001099,2]
[361228914,1747366231490,-167.03,0.0001099,2]
[361228916,1747366231500,-1200.0,0.00010999,2]
[361228918,1747366231509,-300.0,0.00010999,2]
[361228920,1747366231518,-7183.88000001,0.00011,2]
[361228923,1747366231622,-4320.52832741,0.00011,2]
[361228938,1747366237456,-29021.34766301,0.00011,2]
[361229068,1747366239983,-453.8784,0.00011,2]
[361229069,1747366239995,-520.8227585,0.00011,2]
[361229070,1747366240006,-64267.46196566,0.00011,2]
[361229071,1747366240130,-179301.80402164,0.00011,2]
[361229072,1747366240139,-200.0,0.00011,2]
[361229073,1747366240149,-200.0,0.00011,2]
[361229074,1747366240158,-200.0,0.00011114,2]
[361229076,1747366240167,-363.96,0.00011153,2]
[361229077,1747366240176,-412.23,0.00011171,2]
[361229078,1747366240186,-331.54036081,0.00011246,2]
[361229079,1747366240196,-167.03,0.00011322,2]
[361229080,1747366240209,-49895.19,0.00011332,2]
[361229081,1747366240218,-250.0,0.0001137,2]
[361229082,1747366240229,-331.54036079,0.0001143,2]
[361229083,1747366240239,-166.77,0.00011484,2]
[361229084,1747366240248,-331.54036079,0.00011614,2]
[361229085,1747366240258,-179.51,0.00011723,2]
[361229086,1747366240267,-331.54036079,0.00011797,2]
[361229087,1747366240278,-174.74,0.00011859,2]
[361229088,1747366240287,-174.74,0.00011862,2]
[361229089,1747366240296,-174.74,0.00011866,2]
[361229090,1747366240305,-174.74,0.00011869,2]
[361229091,1747366240315,-174.74,0.00011872,2]
[361229092,1747366240324,-174.74,0.00011875,2]
[361229093,1747366240333,-174.74,0.00011878,2]
[361229094,1747366240343,-174.74,0.00011881,2]
[361229095,1747366240353,-174.74,0.00011884,2]
[361229096,1747366240362,-167.03,0.00011886,2]
[361229097,1747366240371,-174.74,0.00011887,2]
[361229098,1747366240381,-174.74,0.00011891,2]
[361229099,1747366240390,-174.74,0.00011894,2]
[361229100,1747366240399,-23900.0,0.00011896,2]
[361229101,1747366240409,-174.74,0.00011897,2]
[361229102,1747366240420,-174.74,0.000119,2]
[361229103,1747366240429,-256.41236646,0.000119,2]
[361229104,1747366240438,-174.74,0.00011903,2]
[361229105,1747366240447,-174.74,0.00011906,2]
[361229106,1747366240456,-174.74,0.00011909,2]
[361229107,1747366240466,-174.74,0.00011912,2]
[361229108,1747366240475,-174.74,0.00011916,2]
[361229109,1747366240483,-174.74,0.00011919,2]
[361229110,1747366240492,-161.29,0.00011966,2]
[361229111,1747366240501,-331.54036079,0.00011981,2]
[361229112,1747366240511,-756.2,0.00011983,2]
[361229113,1747366240519,-167.03,0.0001199,2]
[361229114,1747366240529,-167.03,0.0001199,2]
[361229115,1747366240539,-48322.0,0.00012,2]
[361229116,1747366240548,-500.0,0.00012,2]
[361229117,1747366240557,-1000.0,0.00012045,2]
[361229118,1747366240566,-394.79,0.00012076,2]
[361229119,1747366240575,-420.0,0.00012087,2]
[361229120,1747366240584,-1680.0,0.00012099,2]
[361229121,1747366240593,-200.0,0.000121,2]
[361229122,1747366240602,-1128.98,0.00012135,2]
[361229123,1747366240611,-175.85,0.00012163,2]
[361229124,1747366240620,-331.54036079,0.00012165,2]
[361229125,1747366240629,-300.0,0.000122,4]
[361229126,1747366240638,-256.41236628,0.0001221,2]
[361229127,1747366240647,-700.0,0.000123,4]
[361229128,1747366240656,-331.54036079,0.00012349,2]
[361229129,1747366240665,-207.4,0.00012354,2]
[361229130,1747366240674,-1202.26,0.00012361,2]
[361229131,1747366240684,-1100.0,0.000124,4]
[361229132,1747366240693,-200.0,0.00012455,2]
[361229133,1747366240702,-8.42572572,0.00012498,2]
[361229134,1747366240711,-1500.0,0.000125,4]
[361229135,1747366240720,-174.21512146,0.000125,2]
[361229136,1747366240729,-256.41236628,0.00012521,2]
[361229137,1747366240738,-331.54036079,0.00012532,2]
[361229138,1747366240747,-157.206,0.000126,2]
[361229139,1747366240756,-1157.974,0.000126,2]
[361229140,1747366240765,-4931.476,0.000126,2]
[361229141,1747366240776,-176.537,0.000126,2]
[361229142,1747366240785,-4037.0,0.000126,2]
[361229143,1747366240794,-156.55,0.000126,2]
[361229144,1747366240805,-1316.193,0.000126,2]
[361229145,1747366240816,-6825.0,0.000126,2]
[361229146,1747366240825,-956.195,0.000126,2]
[361229147,1747366240835,-1900.0,0.000126,4]
[361229148,1747366240844,-807.72338721,0.00012604,2]
[361229149,1747366240853,-300.0,0.000127,4]
[361229150,1747366240862,-331.54036079,0.00012716,2]
[361229151,1747366240871,-179.5419,0.0001277,2]
[361229152,1747366240880,-300.0,0.000128,4]
[361229153,1747366240890,-256.41236628,0.00012831,2]
[361229154,1747366240899,-155.0,0.00012862,2]
[361229155,1747366240908,-151.0,0.00012862,2]
[361229156,1747366240917,-151.0,0.00012862,2]
[361229157,1747366240926,-719.52358209,0.00012862,2]
[361229158,1747366240936,-668.65185757,0.00012862,2]
[361229159,1747366240945,-156.80306497,0.00012862,2]
[361229160,1747366240955,-200.0,0.00012862,2]
[361229161,1747366240966,-75667.94176043,0.0001287,2]
[361229162,1747366240977,-500.0,0.00012896,2]
[361229163,1747366240986,-200.0,0.00012896,2]
[361229164,1747366240995,-3394.205,0.00012899,2]
[361229165,1747366241005,-170.306,0.00012899,2]
[361229166,1747366241014,-364.4347,0.000129,2]
[361229167,1747366241024,-29505.1997,0.000129,2]
[361229168,1747366241033,-236.93593491,0.000129,2]
[361229169,1747366241043,-722.03239752,0.000129,2]
[361229170,1747366241052,-632.8827,0.000129,2]
[361229171,1747366241061,-300.0,0.000129,4]
[361229172,1747366241070,-199.21833684,0.000129,2]
[361229173,1747366241079,-331.54036079,0.000129,2]
[361229174,1747366241088,-457.79858017,0.000129,2]
[361229175,1747366241098,-1813.4961159,0.00012934,2]
[361229176,1747366241106,-164.02089402,0.00012973,2]
[361229177,1747366241115,-500.36025155,0.00012973,2]
[361229178,1747366241125,-502.39777938,0.00012973,2]
[361229179,1747366241133,-597.88312676,0.00012973,2]
[361229180,1747366241142,-502.29312686,0.00012973,2]
[361229181,1747366241151,-500.0,0.00012973,2]
[361229182,1747366241160,-524.85252121,0.00012973,2]
[361229183,1747366241169,-501.02205933,0.00012973,2]
[361229184,1747366241177,-501.28329626,0.00012973,2]
[361229185,1747366241186,-500.0,0.00012973,2]
[361229186,1747366241194,-501.21010304,0.00012973,2]
[361229187,1747366241207,-502.7761219,0.00012973,2]
[361229188,1747366241214,-503.24695632,0.00012973,2]
[361229189,1747366241222,-503.28600546,0.00012973,2]
[361229190,1747366241229,-500.48558467,0.00012973,2]
[361229191,1747366241239,-500.0,0.00012973,2]
[361229192,1747366241247,-500.0,0.00012973,2]
[361229193,1747366241255,-350.0,0.00012987,2]